bitfinex-derivatives/quotes_BTCF0:USTF0_20251119
["timestamp","ask_amount","ask_price","bid_price","bid_amount"]
[1763513029613,0.38197,92703.0,92702.0,0.045]
[1763513029811,0.04304,92701.0,92700.0,0.00219803]
[1763513030016,0.04304,92701.0,92691.0,0.00016183]
[1763513030017,0.04304,92692.0,92691.0,0.02231183]
[1763513030405,0.04304,92692.0,92691.0,0.00016183]
[1763513032117,0.04304,92695.0,92694.0,0.1079382]
[1763513032315,0.4697298,92703.0,92691.0,0.00016183]
[1763513032316,0.02117,92692.0,92691.0,0.02231183]
[1763513032518,0.28269,92692.0,92691.0,0.02231183]
[1763513032713,0.30456,92692.0,92691.0,0.02231183]
[1763513033217,0.04304,92692.0,92691.0,0.00016183]
[1763513033412,0.30456,92692.0,92691.0,0.00016183]
[1763513033809,0.30456,92692.0,92673.0,0.1079628]
[1763513034012,0.1509943,92681.0,92680.0,0.00219803]
[1763513034221,0.26152,92681.0,92663.0,0.3608]
[1763513034412,0.129843,92665.0,92664.0,0.02215]
[1763513034714,0.151013,92665.0,92664.0,0.02215]
[1763513035109,0.04304,92665.0,92664.0,0.02215]
[1763513035611,0.04304,92665.0,92664.0,0.4058]
[1763513035817,0.04304,92665.0,92662.0,0.1079764]
[1763513035818,0.30464,92670.0,92661.0,0.3608]
[1763513036122,0.04304,92661.0,92660.0,0.02434803]
[1763513036413,0.04304,92661.0,92660.0,0.04719803]
[1763513036613,0.1510176,92661.0,92660.0,0.04719803]
[1763513037713,0.1510176,92661.0,92660.0,0.00219803]
[1763513038116,0.1535635,92656.0,92655.0,0.00016183]
[1763513039512,0.1079912,92650.0,92633.0,0.3608]
[1763513039709,0.1535809,92641.0,92640.0,0.00073267]
[1763513040114,0.04558,92641.0,92640.0,0.00073267]
[1763513040318,0.04558,92634.0,92633.0,0.3608]
[1763513041221,0.04458,92634.0,92633.0,0.3608]
[1763513042030,0.04358,92634.0,92633.0,0.3608]
[1763513042210,0.02036,92634.0,92633.0,0.38335]
[1763513042411,0.00016192,92643.0,92642.0,0.1518598]
[1763513042617,0.66794,92671.0,92652.0,0.01302]
[1763513042940,0.1535577,92661.0,92660.0,0.00073267]
[1763513043114,0.30718,92661.0,92660.0,0.04459267]
[1763513043423,0.30718,92661.0,92660.0,0.00073267]
[1763513043624,0.1535682,92652.0,92651.0,0.00016192]
[1763513044220,0.4151682,92652.0,92651.0,0.00016192]
[1763513045123,0.30718,92652.0,92651.0,0.02271192]
[1763513045912,0.30718,92652.0,92651.0,0.04402192]
[1763513046527,0.30718,92652.0,92651.0,0.00016192]
[1763513048021,0.3608,92653.0,92652.0,0.04386]
[1763513048330,0.62236,92653.0,92652.0,0.04386]
[1763513049021,0.1535682,92652.0,92651.0,0.00016192]
[1763513049220,0.1535682,92652.0,92651.0,0.02271192]
[1763513049426,0.4151282,92652.0,92651.0,0.02271192]
[1763513049624,0.02236,92658.0,92657.0,0.1305312]
[1763513049821,0.00219803,92660.0,92659.0,0.04386]
[1763513050228,0.26156,92664.0,92663.0,0.1518353]
[1763513050730,0.26156,92664.0,92663.0,0.04386]
[1763513050923,0.04558,92661.0,92660.0,0.00073267]
[1763513051727,0.26156,92664.0,92663.0,0.04386]
[1763513052931,0.26156,92664.0,92663.0,0.04486]
[1763513053318,0.26156,92664.0,92663.0,0.04586]
[1763513053830,0.1303342,92664.0,92663.0,0.04586]
[1763513054028,0.1303342,92664.0,92663.0,0.04486]
[1763513054236,0.00016192,92670.0,92669.0,0.1518284]
[1763513054535,0.26164192,92670.0,92669.0,0.5126284]
[1763513054929,0.00016192,92670.0,92669.0,0.5126284]
[1763513055833,0.00016192,92670.0,92669.0,0.5136284]
[1763513056031,0.04793995,92670.0,92669.0,0.40566]
[1763513057025,0.04793995,92670.0,92669.0,0.38435]
[1763513057230,0.04793995,92670.0,92669.0,0.3618]
[1763513057430,0.04793995,92670.0,92669.0,0.3608]
[1763513060135,0.1535565,92662.0,92661.0,0.3608]
[1763513060724,0.1535565,92662.0,92661.0,0.38335]
[1763513061228,0.1535565,92662.0,92661.0,0.40466]
[1763513061430,0.04515192,92670.0,92669.0,0.04602]
[1763513061626,0.02422995,92670.0,92669.0,0.40682]
[1763513061830,0.26375995,92670.0,92669.0,0.40682]
[1763513063945,0.28562995,92670.0,92669.0,0.40682]
[1763513064241,0.30874995,92670.0,92669.0,0.40682]
[1763513064538,0.1215064,92688.0,92669.0,0.40682]
[1763513064539,0.2614,92684.0,92683.0,0.04602]
[1763513066640,0.00016183,92693.0,92692.0,0.1539615]
[1763513066843,0.02187,92704.0,92703.0,0.1539476]
[1763513067040,0.30635,92704.0,92703.0,0.1539476]
[1763513067239,0.02187,92704.0,92703.0,0.1539476]
[1763513067644,0.26136,92706.0,92705.0,0.0425]
[1763513067845,0.30712,92706.0,92705.0,0.0425]
[1763513069337,0.30912,92706.0,92705.0,0.0425]
[1763513070237,0.28629,92706.0,92700.0,0.00219803]
[1763513070440,0.04576,92701.0,92700.0,0.00219803]
[1763513072734,0.04676,92701.0,92700.0,0.00219803]
[1763513072945,0.1546911,92701.0,92700.0,0.00219803]
[1763513073147,0.1556911,92701.0,92700.0,0.00219803]
[1763513074652,0.04776,92701.0,92700.0,0.00219803]
[1763513076065,0.04776,92701.0,92700.0,0.02333803]
[1763513076562,0.1556911,92701.0,92700.0,0.02333803]
[1763513076755,0.04776,92701.0,92700.0,0.02333803]
[1763513077353,0.1556911,92701.0,92700.0,0.02333803]
[1763513078668,0.04776,92701.0,92700.0,0.02333803]
[1763513079064,0.1556911,92701.0,92700.0,0.02333803]
[1763513079267,0.04776,92701.0,92700.0,0.02333803]
[1763513079871,0.04776,92701.0,92700.0,0.04469803]
[1763513080065,0.04776,92701.0,92700.0,0.00219803]
[1763513082368,0.04776,92701.0,92700.0,0.04469803]
[1763513082769,0.002,92701.0,92700.0,0.05762803]
[1763513083161,0.04776,92701.0,92700.0,0.04469803]
[1763513083375,0.04776,92701.0,92700.0,0.02333803]
[1763513085180,0.04776,92701.0,92696.0,0.00016183]
[1763513085181,0.1536957,92697.0,92696.0,0.00016183]
[1763513086466,0.1536957,92697.0,92696.0,0.04266183]
[1763513086667,0.1546957,92697.0,92696.0,0.04266183]
[1763513087271,0.04676,92697.0,92696.0,0.04266183]
[1763513087876,0.04676,92697.0,92696.0,0.02130183]
[1763513089079,0.04676,92697.0,92696.0,0.04266183]
[1763513093281,0.04676,92697.0,92696.0,0.00016183]
[1763513093977,0.04676,92697.0,92676.0,0.3608]
[1763513093978,0.1079371,92696.0,92676.0,0.3608]
[1763513094278,0.1537085,92686.0,92675.0,0.1079609]
[1763513094478,0.4146685,92686.0,92675.0,0.1079609]
[1763513094685,0.4146685,92686.0,92677.0,0.1079583]
[1763513094881,0.4146685,92686.0,92674.0,0.1079615]
[1763513095082,0.4146685,92686.0,92676.0,0.00016183]
[1763513095278,0.4146685,92686.0,92681.0,0.02912666]
[1763513095474,0.1537132,92682.0,92681.0,0.02912666]
[1763513095883,0.04576,92681.0,92680.0,0.03132469]
[1763513096281,0.04576,92681.0,92680.0,0.04469803]
[1763513096475,0.04576,92681.0,92680.0,0.07382469]
[1763513096671,0.02283,92685.0,92684.0,0.0425]
[1763513096875,0.02283,92685.0,92683.0,0.1079519]
[1763513096876,0.38363,92692.0,92691.0,0.05543]
[1763513097179,0.40656,92692.0,92691.0,0.0425]
[1763513098982,0.1646927,92691.0,92690.0,0.00219803]
[1763513099195,0.1517085,92686.0,92685.0,0.02912666]
[1763513099491,0.4127085,92686.0,92685.0,0.02912666]
[1763513099984,0.04376,92681.0,92680.0,0.02912666]
[1763513100482,0.04376,92681.0,92676.0,0.00016183]
[1763513100483,0.151719,92677.0,92676.0,0.00016183]
[1763513100687,0.412719,92677.0,92676.0,0.00016183]
[1763513103185,0.151719,92677.0,92676.0,0.00016183]
[1763513103383,0.28309,92677.0,92676.0,0.04633183]
[1763513103790,0.30476,92677.0,92676.0,0.04633183]
[1763513103986,0.30476,92677.0,92676.0,0.00016183]
[1763513104176,0.30476,92677.0,92667.0,0.3608]
[1763513104177,0.1517295,92668.0,92667.0,0.3608]
[1763513104381,0.4127295,92668.0,92667.0,0.3608]
[1763513104790,0.4127295,92668.0,92667.0,0.40697]
[1763513104791,0.04376,92668.0,92667.0,0.40697]
[1763513104983,0.30476,92668.0,92667.0,0.40697]
[1763513106392,0.02209,92675.0,92674.0,0.04617]
[1763513106707,0.3608,92694.0,92675.0,0.02303]
[1763513106708,0.261,92676.0,92675.0,0.02303]
[1763513106883,0.30476,92676.0,92675.0,0.40697]
[1763513107189,0.30476,92676.0,92675.0,0.5149314]
[1763513107397,0.27883152,92676.0,92675.0,0.5149314]
[1763513107687,0.04376,92685.0,92684.0,0.04617]
[1763513107887,0.1517031,92691.0,92690.0,0.04617]
[1763513108089,0.4127031,92691.0,92690.0,0.04836803]
[1763513108288,0.30476,92691.0,92690.0,0.04836803]
[1763513108486,0.30476,92691.0,92690.0,0.06168803]
[1763513108993,0.30576,92691.0,92690.0,0.04836803]
[1763513110092,0.28409,92691.0,92690.0,0.06168803]
[1763513110293,0.262,92691.0,92690.0,0.06168803]
[1763513110494,0.262,92691.0,92690.0,0.06268803]
[1763513110693,0.28309,92691.0,92690.0,0.06268803]
[1763513110995,0.30476,92691.0,92690.0,0.06268803]
[1763513111487,0.30476,92691.0,92690.0,0.06368803]
[1763513111895,0.261,92691.0,92690.0,0.06368803]
[1763513112480,0.261,92691.0,92690.0,0.06268803]
[1763513113490,0.10810073,92695.0,92694.0,0.1541092]
[1763513113491,0.00016183,92695.0,92694.0,0.1541092]
[1763513113688,0.00016183,92695.0,92694.0,0.18317552]
[1763513113893,0.10809993,92695.0,92694.0,0.07523632]
[1763513114295,0.10809993,92695.0,92690.0,0.01751803]
[1763513114296,0.04376,92694.0,92693.0,0.02906632]
[1763513114493,0.10809993,92695.0,92690.0,0.00419803]
[1763513114494,0.04376,92691.0,92690.0,0.00419803]
[1763513115087,0.04376,92691.0,92690.0,0.00319803]
[1763513115582,0.04376,92691.0,92690.0,0.04836803]
[1763513115788,0.00016183,92695.0,92690.0,0.04836803]
[1763513115789,0.00016183,92695.0,92694.0,0.1541092]
[1763513118997,0.1516853,92706.0,92705.0,0.04617]
[1763513119199,0.1300153,92706.0,92705.0,0.40697]
[1763513119789,0.1516853,92706.0,92705.0,0.40697]
[1763513120494,0.1516911,92701.0,92700.0,0.00219803]
[1763513120697,0.1516957,92697.0,92696.0,0.00016183]
[1763513123803,0.4126957,92697.0,92696.0,0.04394183]
[1763513123998,0.04376,92697.0,92696.0,0.04394183]
[1763513124200,0.30476,92697.0,92696.0,0.04394183]
[1763513124497,0.4126957,92697.0,92696.0,0.04394183]
[1763513126505,0.4126957,92697.0,92696.0,0.00016183]
[1763513127391,0.30476,92697.0,92696.0,0.04330183]
[1763513129189,0.04376,92697.0,92696.0,0.04330183]
[1763513129404,0.30472,92697.0,92696.0,0.04330183]
[1763513129800,0.30472,92697.0,92675.0,0.02906632]
[1763513129801,0.1521902,92676.0,92675.0,0.02906632]
[1763513130007,0.11246,92659.0,92658.0,0.3608]
[1763513130304,0.1079937,92648.0,92647.0,0.04481]
[1763513130503,0.1124737,92648.0,92647.0,0.04481]
[1763513131200,0.62092183,92659.0,92650.0,0.00219803]
[1763513131397,0.62092183,92659.0,92650.0,0.04700803]
[1763513131597,0.1124665,92654.0,92653.0,0.04481]
[1763513134999,0.1124665,92654.0,92653.0,0.02291]
[1763513136209,0.1124693,92651.0,92650.0,0.00219803]
[1763513136512,0.1124693,92651.0,92646.0,0.00026985]
[1763513136513,0.112474,92647.0,92646.0,0.00026985]
[1763513136718,0.1124833,92639.0,92638.0,0.00016183]
[1763513136915,0.3735233,92639.0,92638.0,0.00016183]
[1763513137612,0.26552,92639.0,92638.0,0.02307183]
[1763513137812,0.3735234,92639.0,92638.0,0.02307183]
[1763513138013,0.26552,92639.0,92638.0,0.04597183]
[1763513138316,0.08958305,92659.0,92658.0,0.04481]
[1763513138503,0.3608,92660.0,92659.0,0.04481]
[1763513138702,0.00464183,92663.0,92662.0,0.04481]
[1763513138909,0.26568183,92663.0,92662.0,0.04481]
[1763513140413,0.26668183,92663.0,92662.0,0.04481]
[1763513141207,0.00448,92661.0,92660.0,0.00219803]
[1763513142312,0.00448,92661.0,92660.0,0.06080803]
[1763513142511,0.00216183,92663.0,92662.0,0.04481]
[1763513142709,0.26544183,92663.0,92662.0,0.04481]
[1763513143298,0.26444183,92663.0,92662.0,0.04481]
[1763513143499,0.26344183,92663.0,92662.0,0.04481]
[1763513144110,0.26444183,92663.0,92662.0,0.04481]
[1763513144308,0.26768183,92663.0,92662.0,0.04481]
[1763513144510,0.26768183,92663.0,92662.0,0.02291]
[1763513144709,0.00448,92661.0,92660.0,0.01599803]
[1763513145214,0.1079766,92662.0,92650.0,0.0138]
[1763513145215,0.00448,92651.0,92650.0,0.05861]
[1763513145517,0.1124694,92651.0,92650.0,0.00219803]
[1763513145915,0.1124694,92651.0,92650.0,0.01599803]
[1763513147311,0.1124694,92651.0,92650.0,0.03890803]
[1763513148322,0.1124694,92651.0,92650.0,0.06080803]
[1763513149313,0.00448,92651.0,92650.0,0.06080803]
[1763513149718,0.1102264,92654.0,92653.0,0.04481]
[1763513149924,0.3735464,92654.0,92653.0,0.04481]
[1763513150928,0.3745464,92654.0,92653.0,0.04481]
[1763513151324,0.3755464,92654.0,92653.0,0.04481]
[1763513151724,0.3745464,92654.0,92653.0,0.04481]
[1763513151921,0.26656,92654.0,92653.0,0.04581]
[1763513152519,0.26556,92654.0,92653.0,0.04581]
[1763513153523,0.26556,92654.0,92653.0,0.04481]
[1763513154020,0.00448,92651.0,92650.0,0.01599803]
[1763513154223,0.1124741,92647.0,92646.0,0.3608]
[1763513155431,0.1124811,92641.0,92640.0,0.0138]
[1763513155629,0.3735611,92641.0,92640.0,0.01599803]
[1763513156129,0.3735611,92641.0,92640.0,0.03890803]
[1763513156432,0.00448,92639.0,92630.0,0.0138]
[1763513156636,0.1125044,92621.0,92610.0,0.05269296]
[1763513156932,0.1125161,92611.0,92610.0,0.0138]
[1763513157133,0.7343961,92611.0,92610.0,0.01599803]
[1763513157727,0.7333961,92611.0,92610.0,0.01599803]
[1763513158033,0.62536,92611.0,92610.0,0.01599803]
[1763513158336,0.62536,92611.0,92610.0,0.03977803]
[1763513158635,0.62536,92611.0,92610.0,0.06215803]
[1763513159328,0.62536,92611.0,92610.0,0.06115803]
[1763513159936,0.62536,92611.0,92610.0,0.06015803]
[1763513160530,0.7323961,92611.0,92610.0,0.03877803]
[1763513161036,0.7323961,92611.0,92610.0,0.06015803]
[1763513161340,0.3608,92611.0,92610.0,0.06015803]
[1763513161636,0.62192,92611.0,92610.0,0.06015803]
[1763513162529,0.62192,92611.0,92610.0,0.06115803]
[1763513162933,0.6244,92611.0,92610.0,0.06115803]
[1763513163434,0.6244,92611.0,92610.0,0.06015803]
[1763513164040,0.6244,92611.0,92610.0,0.06115803]
[1763513164426,0.00016192,92620.0,92619.0,0.02278]
[1763513164627,0.00016192,92620.0,92619.0,0.04416]
[1763513164833,0.00016192,92620.0,92619.0,0.40496]
[1763513165036,0.3608,92639.0,92638.0,0.1521646]
[1763513165333,0.3608,92639.0,92638.0,0.04416]
[1763513165535,0.3636,92639.0,92638.0,0.02278]
[1763513165733,0.3608,92639.0,92638.0,0.04416]
[1763513165939,0.3636,92639.0,92638.0,0.04416]
[1763513166140,0.3622,92639.0,92638.0,0.04416]
[1763513166433,0.3608,92639.0,92638.0,0.04416]
[1763513167336,0.3622,92645.0,92644.0,0.04416]
[1763513167529,0.62472,92645.0,92644.0,0.04416]
[1763513167730,0.7327164,92645.0,92644.0,0.04416]
[1763513168125,0.0028,92643.0,92642.0,0.0132]
[1763513168332,0.0028,92643.0,92642.0,0.03598]
[1763513168532,0.62192,92645.0,92644.0,0.04416]
[1763513168533,0.62292,92645.0,92644.0,0.04416]
[1763513168742,0.62572,92645.0,92644.0,0.04416]
[1763513169033,0.62432,92645.0,92644.0,0.04416]
[1763513169243,0.62392,92645.0,92644.0,0.04416]
[1763513169830,0.3628,92645.0,92644.0,0.04416]
[1763513170029,0.002,92645.0,92644.0,0.04416]
[1763513170637,1.92e-06,92648.0,92647.0,0.04416]
[1763513170831,0.3608,92659.0,92658.0,0.1521413]
[1763513171029,0.03847379,92685.0,92658.0,0.1521413]
[1763513171030,0.03847379,92691.0,92685.0,0.04416]
[1763513171235,0.00366,92705.0,92704.0,0.02278]
[1763513171540,0.1115865,92705.0,92704.0,0.04416]
[1763513171725,0.1115865,92705.0,92704.0,0.40496]
[1763513171932,0.1115865,92705.0,92704.0,0.3608]
[1763513172725,0.1125865,92705.0,92704.0,0.3608]
[1763513173135,0.107937,92696.0,92695.0,0.00016184]
[1763513173439,0.107937,92696.0,92675.0,0.0132]
[1763513173440,0.1079603,92676.0,92675.0,0.0132]
[1763513173742,0.1079731,92665.0,92650.0,0.3608]
[1763513174044,0.1079731,92665.0,92660.0,0.00219803]
[1763513174335,0.26108,92668.0,92667.0,0.04416]
[1763513175135,0.1079708,92667.0,92664.0,0.0152]
[1763513175535,0.1079708,92667.0,92664.0,0.0142]
[1763513175940,0.1079708,92667.0,92664.0,0.0132]
[1763513176146,0.1079708,92667.0,92655.0,0.00016184]
[1763513176147,0.1079836,92656.0,92655.0,0.00016184]
[1763513176441,0.7298636,92656.0,92655.0,0.00016184]
[1763513176641,0.7298636,92656.0,92640.0,0.0132]
[1763513176642,0.1079999,92642.0,92640.0,0.0132]
[1763513176838,0.26108,92641.0,92640.0,0.0132]
[1763513177043,0.26108,92641.0,92640.0,0.05955803]
[1763513177336,0.1080139,92630.0,92629.0,0.3608]
[1763513178043,0.00016193,92639.0,92638.0,0.04416]
[1763513178242,0.26124193,92639.0,92638.0,0.05736]
[1763513178446,0.26124193,92639.0,92638.0,0.0132]
[1763513179441,0.00016193,92639.0,92638.0,0.05736]
[1763513182344,0.03830487,92654.0,92653.0,0.04921]
[1763513182531,0.3690624,92657.0,92656.0,0.04921]
[1763513183147,0.1079882,92652.0,92651.0,0.01431]
[1763513183547,0.4687882,92652.0,92650.0,0.00219803]
[1763513183847,0.1079987,92643.0,92642.0,0.00016193]
[1763513184147,0.1079987,92643.0,92642.0,0.02443193]
[1763513184946,0.3690786,92644.0,92643.0,0.04921]
[1763513185837,0.3690786,92644.0,92642.0,0.00016193]
[1763513188143,0.3690786,92644.0,92627.0,0.3608]
[1763513188144,0.108015,92629.0,92627.0,0.3608]
[1763513188344,0.1080267,92619.0,92618.0,0.3608]
[1763513188545,0.3691067,92619.0,92618.0,0.3608]
[1763513188748,0.1080337,92613.0,92608.0,0.3608]
[1763513188951,0.26108,92619.0,92618.0,0.04868]
[1763513189549,0.26108,92619.0,92618.0,0.04968]
[1763513189749,0.26008,92619.0,92618.0,0.04968]
[1763513190642,0.26008,92619.0,92618.0,0.05068]
[1763513191449,0.26008,92619.0,92618.0,0.002]
[1763513191948,0.26008,92619.0,92618.0,0.02664]
[1763513192849,0.26008,92619.0,92618.0,0.05068]
[1763513193646,0.1080244,92621.0,92620.0,0.05087803]
[1763513193852,0.3608,92622.0,92621.0,0.04868]
[1763513194152,0.00016193,92628.0,92627.0,0.04868]
[1763513194347,0.26128193,92628.0,92627.0,0.04868]
[1763513195255,0.36929823,92628.0,92627.0,0.04868]
[1763513195454,0.26128193,92628.0,92627.0,0.04868]
[1763513196454,0.26128193,92628.0,92617.0,0.3608]
[1763513196455,0.36929823,92628.0,92617.0,0.38544]
[1763513196656,0.108021,92625.0,92620.0,0.02683803]
[1763513196857,0.1080214,92624.0,92622.0,0.02464]
[1763513197349,0.1080209,92624.0,92623.0,0.02464]
[1763513198046,0.1080209,92624.0,92623.0,0.04868]
[1763513198251,0.1080176,92627.0,92623.0,0.04868]
[1763513198555,0.26128193,92628.0,92624.0,0.04868]
[1763513198556,0.1080205,92625.0,92624.0,0.04868]
[1763513199749,0.1080244,92621.0,92620.0,0.01587803]
[1763513199953,0.3691444,92621.0,92620.0,0.01587803]
[1763513201064,0.1080337,92613.0,92612.0,0.06188]
[1763513201264,0.3691537,92613.0,92612.0,0.06188]
[1763513201451,0.26112,92613.0,92612.0,0.06188]
[1763513203058,0.26112,92613.0,92612.0,0.1699149]
[1763513203262,0.1080145,92630.0,92627.0,0.04868]
[1763513203462,0.26128193,92628.0,92627.0,0.04868]
[1763513203658,0.00016193,92628.0,92627.0,0.04868]
[1763513203857,0.26128193,92628.0,92627.0,0.40948]
[1763513204259,0.00016193,92628.0,92627.0,0.40948]
[1763513206268,0.10817863,92628.0,92627.0,0.04868]
[1763513206562,0.10817863,92628.0,92627.0,0.04968]
[1763513207363,0.10817863,92628.0,92627.0,0.04868]
[1763513207761,0.10817863,92628.0,92627.0,0.04968]
[1763513208165,0.10817863,92628.0,92627.0,0.04868]
[1763513208359,0.36929863,92628.0,92627.0,0.04968]
[1763513208866,0.36929863,92628.0,92627.0,0.04868]
[1763513210267,0.1080244,92621.0,92620.0,0.06236]
[1763513210462,0.08208057,92621.0,92620.0,0.00073267]
[1763513210658,0.08208057,92621.0,92620.0,0.06309267]
[1763513211663,0.3608,92626.0,92625.0,0.04868]
[1763513211967,0.1080222,92623.0,92620.0,0.01441267]
[1763513212165,0.3691394,92626.0,92625.0,0.04868]
[1763513212466,0.00016193,92628.0,92627.0,0.04868]
[1763513212660,0.00016193,92628.0,92627.0,0.40948]
[1763513213556,0.00016193,92628.0,92627.0,0.38544]
[1763513214162,0.00016193,92628.0,92627.0,0.40948]
[1763513215172,0.00016193,92628.0,92620.0,0.06236]
[1763513215173,0.1080244,92621.0,92620.0,0.06236]
[1763513215472,0.3691444,92621.0,92620.0,0.06309267]
[1763513216860,0.26112,92621.0,92620.0,0.06309267]
[1763513219771,0.26112,92621.0,92620.0,0.06409267]
[1763513219976,0.26112,92621.0,92620.0,0.06509267]
[1763513220469,0.26112,92621.0,92620.0,0.06409267]
[1763513220661,0.00016193,92628.0,92627.0,0.04513]
[1763513220969,0.1079964,92645.0,92644.0,0.04513]
[1763513221161,0.3691164,92645.0,92644.0,0.04513]
[1763513222368,0.3608,92649.0,92648.0,0.04513]
[1763513222575,0.00219803,92650.0,92649.0,0.04513]
[1763513222774,0.26128193,92654.0,92653.0,0.05894]
[1763513222979,0.26128193,92654.0,92653.0,0.1669271]
[1763513223267,1.93e-06,92654.0,92653.0,0.5277271]
[1763513223458,0.3608,92666.0,92665.0,0.1531031]
[1763513223665,0.3608,92666.0,92665.0,0.04513]
[1763513224670,0.1079731,92665.0,92664.0,0.01381]
[1763513225866,0.1079824,92657.0,92656.0,0.00016193]
[1763513226168,0.40740727,92657.0,92656.0,0.00016193]
[1763513226869,0.40740727,92657.0,92656.0,0.02238193]
[1763513227066,0.29942487,92657.0,92656.0,0.04529193]
[1763513227273,0.26112,92657.0,92656.0,0.04529193]
[1763513227469,0.3691024,92657.0,92656.0,0.04529193]
[1763513227666,0.3691024,92657.0,92656.0,0.00016193]
[1763513229971,0.3691024,92657.0,92656.0,0.04529193]
[1763513230869,0.3691024,92657.0,92656.0,0.00016193]
[1763513232671,0.1079952,92646.0,92645.0,0.3608]
[1763513232875,0.1079952,92646.0,92642.0,0.05894]
[1763513232876,0.1079987,92643.0,92642.0,0.05894]
[1763513234175,0.26108,92646.0,92645.0,0.04513]
[1763513234576,0.00219803,92650.0,92649.0,0.1531217]
[1763513234881,0.26327803,92650.0,92649.0,0.04513]
[1763513236174,0.26327803,92650.0,92642.0,0.01381]
[1763513236175,0.1079987,92643.0,92642.0,0.05894]
[1763513236575,0.1079987,92643.0,92642.0,0.01381]
[1763513237880,0.1079987,92643.0,92640.0,0.00073267]
[1763513238080,0.1080011,92641.0,92640.0,0.00073267]
[1763513239487,0.3608,92650.0,92649.0,0.04513]
[1763513239687,0.62407803,92650.0,92649.0,0.04513]
[1763513241586,0.1079958,92646.0,92645.0,0.04445]
[1763513242674,0.73206973,92650.0,92649.0,0.04445]
[1763513242875,0.1079988,92643.0,92642.0,0.05826]
[1763513243387,0.3690788,92643.0,92642.0,0.05826]
[1763513244682,0.26108,92643.0,92642.0,0.05826]
[1763513245079,0.3608,92650.0,92649.0,0.04445]
[1763513245279,0.62407803,92650.0,92649.0,0.04445]
[1763513247684,0.62407803,92650.0,92642.0,0.03519]
[1763513247883,0.1079988,92643.0,92642.0,0.01381]
[1763513248185,0.3690788,92643.0,92642.0,0.01381]
[1763513248485,0.26108,92643.0,92642.0,0.05814]
[1763513250378,0.23514082,92643.0,92642.0,0.05814]
[1763513251284,0.23514082,92643.0,92642.0,0.01381]
[1763513251689,0.23514082,92643.0,92642.0,0.0353]
[1763513252190,0.23514082,92643.0,92642.0,0.05814]
[1763513253494,0.4687909,92650.0,92649.0,0.04433]
[1763513253787,0.36299803,92650.0,92649.0,0.04433]
[1763513254092,0.00016193,92652.0,92651.0,0.04433]
[1763513257696,0.3608,92666.0,92650.0,0.12207327]
[1763513257697,0.3608,92666.0,92665.0,0.04433]
[1763513257888,0.1079659,92672.0,92671.0,0.04433]
[1763513258088,0.1079638,92673.0,92672.0,0.107965]
[1763513258292,0.1079638,92673.0,92672.0,0.152295]
[1763513258792,0.1079638,92673.0,92672.0,0.04433]
[1763513260392,0.1079615,92675.0,92674.0,0.02149]
[1763513260697,0.1079615,92675.0,92674.0,0.04433]
[1763513260992,0.1079661,92671.0,92670.0,0.05841267]
[1763513262700,0.26104,92676.0,92675.0,0.04433]
[1763513262990,0.1079662,92671.0,92670.0,0.03557267]
[1763513263386,0.1079662,92671.0,92670.0,0.05841267]
[1763513263592,0.1079662,92671.0,92663.0,0.00016193]
[1763513263593,0.1079743,92664.0,92663.0,0.00016193]
[1763513263791,0.7298143,92664.0,92663.0,0.00016193]
[1763513264590,0.7298143,92664.0,92663.0,0.02165193]
[1763513265302,0.7298143,92664.0,92663.0,0.00016193]
[1763513265593,0.76811917,92664.0,92663.0,0.00016193]
[1763513266297,0.1079895,92651.0,92650.0,0.05768]
[1763513266596,0.3689895,92651.0,92650.0,0.05841267]
[1763513267498,0.3689895,92651.0,92650.0,0.05941267]
[1763513267799,0.3689895,92651.0,92650.0,0.06041267]
[1763513270101,0.3689895,92651.0,92650.0,0.002]
[1763513270601,0.45445412,92651.0,92650.0,0.002]
[1763513270803,0.45445412,92651.0,92650.0,0.001]
[1763513271107,0.1079988,92643.0,92641.0,0.00016193]
[1763513271296,0.6218,92642.0,92641.0,0.00016193]
[1763513273603,0.6218,92642.0,92621.0,0.39963946]
[1763513273604,0.1080232,92622.0,92610.0,0.01335]
[1763513273906,0.1080232,92622.0,92600.0,0.05768]
[1763513273907,0.1080477,92601.0,92600.0,0.05768]
[1763513274105,0.3690877,92601.0,92600.0,0.05841267]
[1763513274405,0.3690877,92601.0,92580.0,0.14171027]
[1763513274406,0.00219803,92600.0,92580.0,0.01335]
[1763513274602,0.1080594,92591.0,92590.0,0.05784193]
[1763513274792,0.3691394,92591.0,92590.0,0.0357346]
[1763513274996,0.3681394,92591.0,92590.0,0.01351193]
[1763513275206,0.3661394,92591.0,92590.0,0.00016193]
[1763513275600,0.36622969,92591.0,92590.0,0.00016193]
[1763513275804,0.36622969,92591.0,92590.0,0.00116193]
[1763513276491,0.36622969,92591.0,92590.0,0.00216193]
[1763513277096,0.36622969,92591.0,92590.0,0.00116193]
[1763513277604,0.36622969,92591.0,92590.0,0.00016193]
[1763513279499,0.10514969,92591.0,92590.0,0.0588146]
[1763513279700,0.36626969,92591.0,92590.0,0.0588146]
[1763513280402,0.36626969,92591.0,92590.0,0.00016193]
[1763513281001,0.36626969,92591.0,92590.0,0.01378193]
[1763513281200,0.36626969,92591.0,92590.0,0.03681193]
[1763513281397,0.36626969,92591.0,92590.0,0.01378193]
[1763513282600,0.36626969,92591.0,92590.0,0.0588146]
[1763513282601,0.26121029,92591.0,92590.0,0.0588146]
[1763513282809,9.029e-05,92591.0,92590.0,0.0588146]
[1763513282995,2.9e-07,92591.0,92590.0,0.0588146]
[1763513283798,2.9e-07,92591.0,92590.0,0.4196146]
[1763513284195,0.10805969,92591.0,92590.0,0.4196146]
[1763513284400,2.9e-07,92591.0,92590.0,0.3753146]
[1763513284706,0.10805969,92591.0,92590.0,0.3753146]
[1763513285006,0.10805969,92591.0,92590.0,0.0588146]
[1763513285306,0.10805969,92591.0,92590.0,0.0145146]
[1763513285307,2.9e-07,92591.0,92590.0,0.0145146]
[1763513285503,0.26116029,92591.0,92590.0,0.0588146]
[1763513286310,0.36921969,92591.0,92590.0,0.0588146]
[1763513286813,0.36921969,92591.0,92590.0,0.0145146]
[1763513287014,0.26116029,92591.0,92590.0,0.0588146]
[1763513287509,2.9e-07,92591.0,92590.0,0.0145146]
[1763513288800,2.9e-07,92591.0,92590.0,0.0375446]
[1763513289008,2.9e-07,92591.0,92590.0,0.0145146]
[1763513289511,0.26116029,92591.0,92590.0,0.0145146]
[1763513289708,2.9e-07,92591.0,92590.0,0.0145146]